bitfinex/quotes_SOLUSD_20240809
["timestamp","ask_amount","ask_price","bid_price","bid_amount"]
[1723194462905,26.44,159.58,159.55,21.9364]
[1723194463080,26.44,159.56,159.52,15.6715]
[1723194463280,26.44,159.54,159.52,15.6715]
[1723194464068,26.44,159.54,159.53,6.2683]
[1723194464265,26.44,159.56,159.55,15.6689]
[1723194464469,26.44,159.57,159.55,15.6689]
[1723194465025,26.44,159.57,159.56,6.2671]
[1723194465293,26.44,159.57,159.55,21.9364]
[1723194467603,26.44,159.56,159.55,15.6689]
[1723194467902,26.44,159.56,159.52,15.6716]
[1723194468204,15.6147,159.59,159.52,15.6716]
[1723194468205,26.44,159.55,159.52,15.6716]
[1723194468995,26.44,159.55,159.53,6.2683]
[1723194469700,26.44,159.55,159.52,15.6716]
[1723194469701,21.8808,159.59,159.54,6.268]
[1723194469899,26.44,159.57,159.55,6.2674]
[1723194470099,15.6147,159.59,159.54,15.6695]
[1723194470304,32.9044,159.6,159.57,6.2668]
[1723194470600,32.9044,159.6,159.58,6.2664]
[1723194470811,32.9044,159.6,159.57,6.2667]
[1723194471181,26.44,159.6,159.57,6.2667]
[1723194472795,26.44,159.6,159.56,21.9346]
[1723194477114,26.44,159.6,159.57,6.2668]
[1723194477282,26.44,159.61,159.58,6.2663]
[1723194477489,26.44,159.62,159.58,15.6656]
[1723194477783,26.44,159.62,159.59,1.25307914]
[1723194478206,26.44,159.62,159.59,6.266]
[1723194478410,26.44,159.62,159.59,7.51908169]
[1723194478707,26.44,159.62,159.59,6.266]
[1723194482116,26.44,159.64,159.58,15.6656]
[1723194482321,26.44,159.65,159.58,42.1056]
[1723194482493,26.44,159.64,159.6,6.2653]
[1723194483099,26.44,159.64,159.61,6.2652]
[1723194483398,26.44,159.65,159.61,6.2652]
[1723194483803,26.44,159.62,159.57,15.6666]
[1723194483999,26.44,159.61,159.57,21.9331]
[1723194484209,26.44,159.6,159.57,21.9331]
[1723194484527,26.44,159.6,159.58,6.2664]
[1723194484693,26.44,159.61,159.57,15.6666]
[1723194485217,26.44,159.62,159.59,6.2657]
[1723194485429,26.44,159.61,159.59,6.2657]
[1723194485596,26.44,159.6,159.57,15.6666]
[1723194485799,26.44,159.58,159.54,15.67]
[1723194485998,26.44,159.57,159.55,6.2675]
[1723194486412,26.44,159.57,159.56,6.2672]
[1723194487922,26.44,159.58,159.57,6.2667]
[1723194489419,26.44,159.58,159.53,15.6706]
[1723194489592,26.44,159.58,159.53,21.9386]
[1723194489593,26.44,159.54,159.53,21.9386]
[1723194490607,26.44,159.54,159.5,21.9432]
[1723194490927,26.44,159.51,159.5,21.9432]
[1723194491898,26.44,159.52,159.51,6.269]
[1723194492304,26.44,159.53,159.52,6.2688]
[1723194492912,15.6737,159.55,159.52,6.2688]
[1723194493122,26.44,159.55,159.53,6.2681]
[1723194493913,26.44,159.54,159.53,6.2681]
[1723194494408,26.44,159.55,159.53,6.2683]
[1723194496927,26.44,159.57,159.54,15.6692]
[1723194497122,32.7517,159.58,159.55,6.2673]
[1723194497321,20.0,159.57,159.54,21.9371]
[1723194498341,46.44,159.57,159.54,21.9371]
[1723194499421,26.44,159.56,159.51,15.6729]
[1723194499625,26.44,159.56,159.53,6.2683]
[1723194499821,26.44,159.56,159.54,6.2678]
[1723194500055,46.44,159.57,159.55,6.2675]
[1723194501001,46.44,159.57,159.53,15.6705]
[1723194501002,46.44,159.57,159.54,6.2679]
[1723194502409,32.7517,159.58,159.55,6.2676]
[1723194503534,32.7517,159.58,159.54,6.2679]
[1723194505923,21.7566,159.63,159.55,1.25343635]
[1723194506233,26.44,159.6,159.57,15.6664]
[1723194506448,26.44,159.59,159.57,15.6664]
[1723194508747,6.2653,159.61,159.57,15.6664]
[1723194508926,46.44,159.6,159.57,15.6664]
[1723194509533,28.0214,159.63,159.57,15.6664]
[1723194509728,26.44,159.61,159.59,6.2659]
[1723194509944,46.44,159.62,159.59,6.2659]
[1723194510453,20.0,159.62,159.59,6.2659]
[1723194511335,15.1833,159.63,159.6,6.2654]
[1723194511551,41.6233,159.63,159.6,6.2654]
[1723194511856,26.44,159.61,159.58,6.2664]
[1723194512038,26.44,159.59,159.53,15.67]
[1723194512354,26.44,159.59,159.52,26.44]
[1723194512355,26.44,159.59,159.55,15.6683]
[1723194512579,3.165197,159.6,159.57,6.2665]
[1723194512751,3.165197,159.6,159.58,6.2664]
[1723194512943,26.44,159.61,159.59,6.266]
[1723194513137,26.44,159.62,159.59,6.266]
[1723194513337,26.44,159.62,159.58,6.2664]
[1723194513949,26.44,159.62,159.59,6.266]
[1723194514641,41.6233,159.63,159.6,6.2655]
[1723194514965,26.44,159.63,159.61,6.2652]
[1723194515144,26.44,159.64,159.61,6.2652]
[1723194515568,26.44,159.66,159.63,6.2641]
[1723194515861,16.4081,159.67,159.64,6.264]
[1723194516071,26.44,159.68,159.64,6.264]
[1723194516239,26.44,159.68,159.64,6.2639]
[1723194517170,26.44,159.68,159.65,6.2636]
[1723194518356,26.44,159.68,159.64,6.264]
[1723194519063,26.44,159.68,159.65,6.2636]
[1723194519436,26.44,159.67,159.6,26.44]
[1723194519743,26.44,159.65,159.59,15.6641]
[1723194519944,26.44,159.65,159.62,6.2648]
[1723194520348,26.44,159.65,159.61,21.9277]
[1723194520555,26.44,159.65,159.62,6.2648]
[1723194520750,26.44,159.66,159.61,15.6625]
[1723194520955,26.44,159.66,159.63,6.2642]
[1723194521161,26.44,159.66,159.62,6.2648]
[1723194521553,26.44,159.66,159.61,15.6625]
[1723194522244,26.44,159.66,159.63,6.2644]
[1723194522865,26.44,159.66,159.63,15.6603]
[1723194523053,26.44,159.68,159.63,15.6603]
[1723194523371,26.44,159.68,159.66,6.2633]
[1723194523748,26.44,159.67,159.66,6.2633]
[1723194524067,26.44,159.68,159.66,6.2633]
[1723194524575,26.44,159.68,159.65,6.2636]
[1723194525458,26.44,159.68,159.66,6.2631]
[1723194525780,26.44,159.69,159.66,6.2631]
[1723194527875,26.44,159.69,159.67,6.2629]
[1723194528168,42.8516,159.72,159.69,6.2618]
[1723194528367,16.4116,159.72,159.69,6.2618]
[1723194528960,42.8516,159.72,159.69,6.2618]
[1723194529159,26.44,159.7,159.63,12.871]
[1723194529361,26.44,159.68,159.64,15.66]
[1723194529551,26.44,159.68,159.65,6.2634]
[1723194529874,26.44,159.67,159.65,6.2634]
[1723194530349,26.44,159.67,159.64,21.9237]
[1723194530551,26.44,159.66,159.64,15.66]
[1723194530751,26.44,159.65,159.62,6.2647]
[1723194531061,26.44,159.65,159.61,15.6627]
[1723194531364,26.44,159.65,159.63,6.2644]
[1723194531759,18.11,159.64,159.63,6.2644]
[1723194533669,26.4,159.65,159.63,6.2644]
[1723194533852,26.4,159.64,159.58,15.6657]
[1723194534167,26.4,159.62,159.58,15.6657]
[1723194534359,26.4,159.63,159.61,6.2652]
[1723194534566,26.4,159.63,159.62,6.2648]
[1723194534953,26.4,159.64,159.63,6.2644]
[1723194535159,26.4,159.65,159.63,6.2644]
[1723194536681,26.4,159.65,159.62,15.6616]
[1723194536682,26.4,159.64,159.62,15.6616]
[1723194536893,26.4,159.63,159.61,6.2652]
[1723194537058,26.4,159.63,159.6,6.2655]
[1723194537261,26.4,159.63,159.61,6.265]
[1723194537675,26.4,159.64,159.62,6.2648]
[1723194537887,26.4,159.63,159.62,6.2648]
[1723194538078,26.4,159.64,159.62,6.2648]
[1723194538765,26.4,159.64,159.61,6.2652]
[1723194538964,26.4,159.63,159.61,6.2652]
[1723194539891,26.4,159.64,159.61,15.6623]
[1723194540183,26.4,159.64,159.62,6.2648]
[1723194540384,16.3678,159.66,159.62,6.2648]
[1723194540568,26.4,159.64,159.62,6.2648]
[1723194541975,26.4,159.64,159.62,6.2647]
[1723194542988,26.4,159.67,159.63,15.6603]
[1723194543291,33.0414,159.69,159.67,6.2629]
[1723194543467,26.4,159.69,159.68,6.2625]
[1723194543667,26.4,159.69,159.67,6.2629]
[1723194544092,15.1589,159.7,159.67,6.2629]
[1723194544280,26.4,159.69,159.67,6.2629]
[1723194545693,26.4,159.69,159.66,6.2632]
[1723194546091,26.4,159.67,159.62,15.662]
[1723194546279,26.4,159.67,159.65,6.2633]
[1723194546787,26.4,159.67,159.64,21.9236]
[1723194546966,26.4,159.66,159.64,15.6596]
[1723194547166,26.4,159.65,159.62,6.2648]
[1723194547381,26.4,159.64,159.63,6.2644]
[1723194547599,26.4,159.65,159.63,6.2644]
[1723194548888,26.4,159.66,159.63,6.2644]
[1723194549196,26.4,159.65,159.63,6.2644]
[1723194549603,26.4,159.65,159.62,6.2648]
[1723194550114,26.4,159.65,159.63,6.2644]
[1723194550298,26.4,159.65,159.61,21.9279]
[1723194550463,26.4,159.64,159.61,15.6627]
[1723194550868,26.4,159.65,159.61,15.6627]
[1723194551485,26.4,159.65,159.63,6.2644]
[1723194552677,26.4,159.65,159.62,6.2648]
[1723194552878,26.4,159.64,159.62,6.2648]
[1723194553608,26.4,159.63,159.62,6.2648]
[1723194553896,18.11,159.63,159.62,6.2648]
[1723194554277,12.4494,159.67,159.62,6.2648]
[1723194554475,18.11,159.63,159.61,15.6627]
[1723194554684,18.11,159.62,159.61,21.9276]
[1723194558697,18.11,159.62,159.61,15.6627]
[1723194559098,18.11,159.62,159.61,21.9279]
[1723194559507,72.44,159.68,159.65,6.2634]
[1723194559804,18.11,159.66,159.61,49.4358]
[1723194560000,18.11,159.65,159.64,15.6602]
[1723194560207,18.11,159.65,159.64,21.9242]
[1723194563595,18.11,159.65,159.62,6.2648]
[1723194563806,18.11,159.63,159.62,6.2648]
[1723194566914,18.11,159.63,159.61,15.6629]
[1723194567099,18.11,159.62,159.61,21.9281]
[1723194569816,6.2626,159.68,159.63,6.2643]
[1723194570019,18.11,159.64,159.63,6.2643]
[1723194570716,18.11,159.64,159.62,6.2645]
[1723194570930,18.11,159.63,159.62,6.2645]
[1723194572404,15.1589,159.7,159.67,6.2628]
[1723194572619,18.11,159.68,159.66,6.2632]
[1723194572915,18.11,159.67,159.66,6.2632]
[1723194574696,18.11,159.67,159.65,6.2636]
[1723194574899,18.11,159.66,159.65,6.2636]
[1723194578190,15.1589,159.7,159.65,6.2636]
[1723194578391,15.1589,159.7,159.66,16.91014919]
[1723194578596,18.11,159.69,159.68,6.2621]
[1723194581134,18.11,159.69,159.66,15.6576]
[1723194581135,15.1589,159.7,159.66,15.6576]
[1723194581309,18.11,159.68,159.66,15.6576]
[1723194581508,18.11,159.67,159.66,15.6576]
[1723194581726,18.11,159.67,159.63,15.6609]
[1723194582029,15.1589,159.7,159.58,18.11]
[1723194582211,18.11,159.62,159.61,6.2652]
[1723194587625,65.0,159.69,159.62,15.6614]
[1723194587834,18.11,159.64,159.62,15.6614]
[1723194588013,18.11,159.64,159.63,6.2644]
[1723194588705,18.11,159.64,159.62,21.9262]
[1723194588904,18.11,159.63,159.62,21.9262]
[1723194599033,18.11,159.63,159.62,15.6614]
[1723194599241,38.11,159.63,159.6,6.2655]
[1723194599539,18.11,159.61,159.6,6.2655]
[1723194600730,18.11,159.62,159.59,16.91795968]
[1723194602011,18.11,159.62,159.61,6.2652]
[1723194604444,18.11,159.62,159.59,21.9306]
[1723194604615,18.11,159.6,159.59,21.9306]
[1723194604817,18.11,159.6,159.58,6.2663]
[1723194605034,18.11,159.59,159.58,6.2663]
[1723194605228,6.2647,159.63,159.58,6.2663]
[1723194605531,18.11,159.59,159.58,6.2663]
[1723194607936,18.11,159.59,159.55,6.2675]
[1723194608145,18.11,159.56,159.53,21.9385]
[1723194608438,18.11,159.54,159.53,21.9385]
[1723194610411,18.11,159.54,159.53,15.6705]
[1723194610615,16.2877,159.58,159.56,15.6678]
[1723194610839,18.11,159.6,159.59,6.266]
[1723194611316,28.1184,159.65,159.59,6.266]
[1723194611520,18.11,159.61,159.6,6.2656]
[1723194611835,18.11,159.61,159.58,21.9319]
[1723194612237,18.11,159.6,159.58,21.9319]
[1723194612421,18.11,159.61,159.6,6.2655]
[1723194613038,18.11,159.61,159.59,6.266]
[1723194613242,18.11,159.6,159.59,6.266]
[1723194613436,18.11,159.6,159.58,15.6656]
[1723194613746,18.11,159.59,159.58,15.6656]
[1723194613920,18.11,159.59,159.58,21.932]
[1723194615742,26.42,159.6,159.58,21.932]
[1723194616849,26.42,159.6,159.58,15.6656]
[1723194617626,26.42,159.6,159.58,21.932]
[1723194617825,26.42,159.59,159.58,21.932]
[1723194619123,26.42,159.6,159.58,21.932]
[1723194619339,26.42,159.6,159.59,6.266]
[1723194621148,26.42,159.6,159.58,15.6656]
[1723194621444,26.42,159.6,159.58,21.9319]
[1723194622526,26.42,159.59,159.58,21.9319]
[1723194623245,26.42,159.59,159.55,21.936]
[1723194623452,26.42,159.56,159.55,21.936]
[1723194623749,26.42,159.56,159.55,15.6687]
[1723194624247,26.42,159.56,159.55,21.9363]
[1723194625951,26.42,159.56,159.55,15.6687]
[1723194626822,26.42,159.56,159.52,15.6715]
[1723194627029,26.42,159.53,159.52,15.6715]
[1723194627232,26.42,159.54,159.53,6.2683]
[1723194627831,26.42,159.54,159.52,15.6715]
[1723194628247,26.42,159.55,159.52,15.6715]
[1723194628552,26.42,159.54,159.53,6.2684]
[1723194631429,26.42,159.55,159.54,6.268]
[1723194631741,42.8617,159.58,159.55,6.2676]
[1723194632752,42.8617,159.58,159.54,15.6694]
[1723194632753,16.4417,159.58,159.56,6.2671]
[1723194633131,26.42,159.68,159.52,26.42]
[1723194633132,22.7709,159.64,159.57,26.42]
[1723194633336,26.42,159.63,159.55,26.42]
[1723194633663,26.42,159.62,159.55,26.42]
[1723194633826,26.42,159.62,159.53,31.3412]
[1723194634032,26.42,159.62,159.54,91.42]
[1723194634853,26.42,159.62,159.59,15.6648]
[1723194635070,26.42,159.6,159.57,6.2667]
[1723194635237,26.42,159.6,159.58,6.2663]
[1723194635559,26.42,159.61,159.58,6.2663]
[1723194635766,26.42,159.6,159.57,6.2667]
[1723194636649,26.42,159.6,159.58,6.2662]
[1723194636956,26.42,159.61,159.58,6.2662]
[1723194637732,18.12,159.59,159.58,6.2662]
[1723194638348,18.12,159.6,159.59,6.2659]
[1723194638552,22.7709,159.64,159.58,15.6654]
[1723194638750,22.7709,159.64,159.6,6.2656]
[1723194638751,18.12,159.61,159.6,6.2656]
[1723194640766,18.12,159.62,159.6,6.2656]
[1723194641354,18.12,159.63,159.6,15.6636]
[1723194642171,6.652,159.68,159.62,15.6615]
[1723194642383,18.12,159.65,159.64,6.2637]
[1723194642881,18.12,159.65,159.62,15.6615]
[1723194643169,18.12,159.63,159.61,6.2651]
[1723194643373,18.12,159.62,159.61,6.2651]
[1723194643677,18.12,159.62,159.59,21.9308]
[1723194643886,18.12,159.6,159.59,15.6649]
[1723194644785,18.12,159.6,159.57,6.2667]
[1723194644953,15.1393,159.64,159.57,6.2667]
[1723194644954,18.12,159.58,159.57,6.2667]
[1723194645663,6.2649,159.62,159.57,6.2667]
[1723194645664,26.42,159.59,159.57,6.2667]
[1723194645870,26.42,159.6,159.59,6.266]
[1723194646063,26.42,159.61,159.59,6.266]
[1723194646444,26.42,159.6,159.58,21.9319]
[1723194647174,26.42,159.61,159.59,6.266]
[1723194648565,26.42,159.62,159.6,6.2656]
[1723194648752,15.1393,159.64,159.6,6.2656]
[1723194648753,26.42,159.63,159.6,6.2656]
[1723194649155,26.42,159.65,159.61,15.663]
[1723194649378,26.42,159.66,159.61,15.663]
[1723194650467,26.42,159.67,159.61,15.663]
[1723194650780,26.42,159.66,159.64,6.264]
[1723194651352,26.42,159.66,159.63,6.2644]
[1723194651746,29.0661,159.68,159.63,15.6606]
[1723194651747,26.42,159.67,159.63,15.6606]
[1723194651951,26.42,159.67,159.65,6.2636]
[1723194652164,26.42,159.67,159.64,6.264]
[1723194652696,22.8036,159.68,159.65,15.6585]
[1723194653181,16.1516,159.68,159.66,6.2632]
[1723194653391,16.1516,159.68,159.65,21.9221]
[1723194654273,42.5716,159.68,159.65,21.9221]
[1723194655376,42.5716,159.68,159.65,15.6585]
[1723194655680,26.42,159.7,159.66,6.2632]
[1723194655881,26.42,159.69,159.66,6.2632]
[1723194656268,26.42,159.7,159.67,15.6566]
[1723194656493,26.42,159.71,159.68,6.2622]
[1723194657487,26.42,159.7,159.67,21.9194]
[1723194659689,26.42,159.69,159.67,15.6566]
[1723194659896,26.42,159.68,159.67,15.6566]
[1723194660219,26.42,159.69,159.67,21.9195]
[1723194661973,26.42,159.69,159.68,6.2625]
[1723194664894,26.42,159.7,159.69,6.2621]
[1723194665092,26.42,159.71,159.69,6.2621]
[1723194665678,18.09,159.71,159.7,6.2617]
[1723194669324,18.09,159.71,159.66,15.6577]
[1723194669613,18.09,159.68,159.66,15.6577]
[1723194671078,18.09,159.68,159.67,6.2628]
[1723194671509,18.09,159.68,159.66,21.9209]
[1723194671712,18.09,159.67,159.66,21.9209]
[1723194672233,38.09,159.67,159.63,21.9254]
[1723194672403,18.09,159.64,159.63,15.661]
[1723194672879,22.3737,159.7,159.66,15.6581]
[1723194673081,22.3737,159.7,159.67,6.2626]
[1723194673388,18.09,159.68,159.66,15.6581]
[1723194673692,18.09,159.68,159.61,49.4154]
[1723194673693,18.09,159.67,159.63,15.6607]
[1723194673903,22.3737,159.7,159.63,15.6607]
[1723194674101,18.09,159.66,159.65,21.9229]
[1723194674906,28.6356,159.7,159.65,21.9229]
[1723194675111,18.09,159.66,159.65,21.9229]
[1723194675291,18.09,159.66,159.65,15.6592]
[1723194676110,22.3737,159.7,159.65,15.6592]
[1723194676323,18.09,159.67,159.66,6.2633]
[1723194676693,22.3737,159.7,159.67,6.2627]
[1723194676908,18.09,159.68,159.67,6.2627]
[1723194677691,18.09,159.68,159.66,6.2632]
[1723194677911,18.09,159.67,159.65,21.9227]
[1723194678414,18.09,159.66,159.64,6.2637]
[1723194678730,18.09,159.65,159.63,6.2644]
[1723194678892,72.36,159.68,159.64,6.264]
[1723194679296,28.6355,159.7,159.65,6.2636]
[1723194679503,26.2623,159.69,159.64,6.264]
[1723194679700,18.09,159.65,159.64,6.264]
[1723194680596,22.3737,159.7,159.65,15.6592]
[1723194680825,18.09,159.68,159.65,15.6592]
[1723194681121,18.09,159.69,159.68,21.9185]
[1723194681328,22.1474,159.74,159.69,6.2617]
[1723194681503,18.09,159.7,159.69,6.2617]
[1723194681692,26.39,159.7,159.68,15.656]
[1723194681898,26.39,159.69,159.68,15.656]
[1723194682202,26.39,159.69,159.68,21.9185]
[1723194682400,26.39,159.7,159.69,6.2621]
[1723194682715,26.39,159.7,159.68,15.656]
[1723194683017,26.39,159.69,159.68,15.656]
[1723194686027,26.39,159.69,159.66,6.2632]
[1723194686202,26.39,159.67,159.66,6.2632]
[1723194686398,26.39,159.67,159.65,21.9223]
[1723194686601,26.39,159.66,159.65,21.9223]
[1723194690019,26.39,159.67,159.66,6.263]
[1723194691111,26.39,159.69,159.67,6.2629]
[1723194691311,26.39,159.7,159.69,6.2618]
[1723194692227,26.39,159.72,159.7,6.2614]
[1723194692622,26.39,159.71,159.7,6.2614]
[1723194692929,26.39,159.71,159.7,6.2617]
[1723194693137,26.39,159.71,159.68,15.6563]
[1723194693309,26.39,159.7,159.69,6.2621]
[1723194694211,26.39,159.7,159.68,21.9187]
[1723194694414,26.39,159.69,159.68,21.9187]
[1723194694622,26.39,159.69,159.68,15.6563]
[1723194694808,26.39,159.69,159.67,6.2626]
[1723194695012,26.39,159.68,159.65,15.6588]
[1723194695336,26.39,159.66,159.65,15.6588]
[1723194695538,26.39,159.66,159.65,21.9224]
[1723194697739,26.39,159.66,159.61,46.9877]
[1723194698038,26.39,159.64,159.61,46.9877]
[1723194698220,26.39,159.64,159.63,6.2644]
[1723194699630,26.39,159.64,159.62,6.2647]
[1723194699934,26.39,159.64,159.63,6.2644]
[1723194700110,26.39,159.64,159.61,21.9274]
[1723194700306,48.6948,159.68,159.61,21.9275]
[1723194700307,26.39,159.62,159.61,21.9275]
[1723194702536,26.39,159.62,159.61,15.6623]
[1723194702836,26.39,159.62,159.61,21.9275]
[1723194703731,26.39,159.63,159.62,6.2647]
[1723194703918,26.39,159.65,159.61,15.6623]
[1723194704232,26.39,159.66,159.65,6.2635]
[1723194704820,22.3048,159.68,159.63,15.6605]
[1723194705016,26.39,159.67,159.63,15.6605]
[1723194705638,22.3311,159.72,159.65,15.6587]
[1723194705934,26.39,159.7,159.69,6.2621]
[1723194706337,26.39,159.71,159.69,6.2621]
[1723194706512,26.39,159.7,159.68,6.2624]
[1723194706714,26.39,159.69,159.67,21.9195]
[1723194707239,28.5921,159.72,159.61,57.7159]
[1723194707240,26.39,159.68,159.65,6.2633]
[1723194707427,26.39,159.67,159.65,6.2633]
[1723194707757,26.39,159.67,159.63,15.6602]
[1723194708040,26.39,159.68,159.61,57.7157]
[1723194708214,26.39,159.68,159.65,15.6584]
[1723194708414,26.39,159.69,159.65,15.6584]
[1723194708826,26.39,159.68,159.66,6.2632]
[1723194709046,26.39,159.68,159.67,6.2629]
[1723194709438,26.39,159.69,159.68,6.2625]
[1723194709641,26.39,159.7,159.68,6.2625]
[1723194712139,32.6521,159.69,159.65,15.6584]
[1723194712342,26.39,159.67,159.65,15.6584]
[1723194712847,26.39,159.67,159.65,21.922]
[1723194713845,6.2613,159.71,159.66,6.2632]
[1723194714153,26.39,159.68,159.66,6.2632]
[1723194715839,26.39,159.69,159.66,6.2632]
[1723194716548,26.39,159.69,159.65,21.9219]
[1723194716738,26.39,159.68,159.65,21.9219]
[1723194717760,26.2617,159.7,159.65,21.9219]
[1723194717958,26.39,159.66,159.61,1.25250166]
[1723194718257,26.39,159.62,159.54,15.6694]
[1723194718461,26.39,159.6,159.56,6.2669]
[1723194718636,26.39,159.58,159.54,21.937]
[1723194719030,26.39,159.58,159.48,3.24115509]
[1723194719031,26.39,159.56,159.51,15.6728]
[1723194719253,6.4884,159.59,159.51,21.9416]
[1723194719254,26.39,159.55,159.51,21.9416]
[1723194719565,26.39,159.54,159.49,12.871]
[1723194719772,26.39,159.54,159.5,6.2692]
[1723194720246,26.39,159.54,159.51,6.2691]
[1723194720460,26.39,159.54,159.5,6.2695]
[1723194720840,6.2668,159.57,159.51,6.2691]
[1723194721039,26.39,159.55,159.51,6.2691]
[1723194721359,26.39,159.53,159.48,18.91695509]
[1723194721536,26.39,159.51,159.48,18.91695509]
[1723194722362,26.39,159.51,159.48,25.18725509]
[1723194723268,26.39,159.49,159.48,3.24115509]
[1723194723439,46.39,159.49,159.48,3.24115509]
[1723194725847,46.39,159.49,159.46,6.2709]
[1723194726953,26.39,159.47,159.4,15.6828]
[1723194727151,26.39,159.45,159.44,6.2719]
[1723194727354,26.39,159.47,159.45,6.2713]
[1723194728061,26.39,159.47,159.42,15.6809]
[1723194728273,26.39,159.47,159.43,6.2723]
[1723194728569,26.39,159.45,159.43,6.2723]
[1723194728867,26.39,159.45,159.42,21.9535]
[1723194729040,26.39,159.45,159.43,6.2721]
[1723194729245,26.39,159.45,159.42,21.9536]
[1723194729445,26.39,159.45,159.43,6.2721]
[1723194729658,26.39,159.47,159.44,6.2718]
[1723194729867,26.39,159.47,159.43,6.272]
[1723194730066,26.39,159.45,159.43,6.272]
[1723194730890,26.39,159.45,159.44,6.2719]
[1723194731747,26.39,159.45,159.42,15.6809]
[1723194731975,26.39,159.45,159.43,6.2722]
[1723194733567,26.39,159.46,159.42,15.6809]
[1723194734863,26.39,159.45,159.42,15.6809]
[1723194735169,26.39,159.45,159.43,6.2722]
[1723194735358,26.39,159.45,159.44,6.2719]
[1723194735666,26.39,159.45,159.43,6.272]
[1723194735882,26.39,159.46,159.43,6.272]
[1723194736680,26.39,159.46,159.44,6.2719]
[1723194737052,26.39,159.46,159.43,6.2722]
[1723194737275,26.39,159.46,159.42,21.9535]
[1723194737573,26.39,159.46,159.38,39.261]
[1723194737574,26.39,159.43,159.39,15.6844]
[1723194737790,26.39,159.43,159.41,6.2728]
[1723194737983,26.39,159.44,159.41,6.2728]
[1723194738187,26.39,159.44,159.4,6.2734]
[1723194738381,26.39,159.42,159.39,15.6844]
[1723194739262,26.39,159.41,159.39,21.9582]
[1723194739870,26.39,159.41,159.4,6.2735]
[1723194740657,26.39,159.41,159.39,15.6844]
[1723194740658,26.39,159.41,159.39,21.9582]
[1723194740850,26.39,159.42,159.39,15.6844]
[1723194741056,26.39,159.43,159.39,15.6844]
[1723194741358,26.39,159.41,159.39,21.9582]
[1723194741787,6.272,159.44,159.32,32.1922043]
[1723194741788,32.4496,159.4,159.36,15.6874]
[1723194742081,46.39,159.39,159.36,15.6874]
[1723194743677,26.39,159.39,159.36,15.6874]
[1723194744555,6.2732,159.41,159.38,6.2739]
[1723194744556,26.39,159.41,159.38,6.2739]
[1723194744885,26.39,159.41,159.36,16.94236787]
[1723194745181,26.39,159.41,159.38,6.2742]
[1723194745584,26.39,159.39,159.36,15.6874]
[1723194745885,26.39,159.39,159.36,21.9623]